bitfinex/quotes_SOLUSD_20251201
["timestamp","ask_amount","ask_price","bid_price","bid_amount"]
[1764632743603,0.7,127.12,127.11,8.06704671]
[1764632743805,2.98337301,127.12,127.11,8.06704671]
[1764632745513,3.12553458,127.12,127.11,0.2]
[1764632746731,0.84216157,127.12,127.11,0.2]
[1764632746893,11.78553458,127.12,127.11,0.2]
[1764632750509,13.073523,127.12,127.11,0.2]
[1764632751324,13.073523,127.12,127.11,8.06720163]
[1764632753519,8.66,127.12,127.11,8.77720163]
[1764632754022,8.66,127.12,127.11,8.06720163]
[1764632756334,8.68,127.13,127.11,28.44520572]
[1764632756527,8.68,127.13,127.12,0.71]
[1764632756824,8.68,127.13,127.12,8.57658275]
[1764632757723,8.68,127.13,127.12,13.84658275]
[1764632760422,12.95136143,127.13,127.12,13.13658275]
[1764632760728,13.093523,127.13,127.12,5.27]
[1764632762326,9.52216157,127.13,127.12,5.27]
[1764632763331,8.68,127.13,127.12,13.84658275]
[1764632763722,8.68,127.13,127.12,8.57658275]
[1764632764710,4.27136143,127.17,127.12,12.14794418]
[1764632764906,8.68,127.16,127.13,4.28136143]
[1764632765320,8.68,127.16,127.13,0.71]
[1764632765321,9.38,127.16,127.13,0.71]
[1764632766031,9.38,127.16,127.14,7.86534528]
[1764632768337,9.38,127.16,127.14,0.71]
[1764632769038,9.38,127.16,127.13,28.23934558]
[1764632769437,12.95136143,127.16,127.13,28.23934558]
[1764632770225,9.38,127.16,127.13,28.23934558]
[1764632770623,8.68,127.16,127.14,0.71]
[1764632771133,8.68,127.16,127.14,4.28136143]
[1764632771644,8.68,127.16,127.15,0.66]
[1764632772216,8.68,127.16,127.15,8.5247267]
[1764632780341,8.66,127.18,127.15,31.75790488]
[1764632780517,8.66,127.18,127.16,0.66]
[1764632781232,9.33,127.18,127.17,7.86348981]
[1764632782048,8.66,127.18,127.17,7.86348981]
[1764632782424,9.33,127.18,127.17,7.86348981]
[1764632782748,8.66,127.18,127.17,7.86348981]
[1764632783154,9.33,127.18,127.17,7.86348981]
[1764632783653,8.66,127.18,127.17,7.86348981]
[1764632784056,9.33,127.18,127.17,7.86348981]
[1764632787053,8.66,127.18,127.17,8.52348981]
[1764632787235,0.67,127.22,127.17,37.15357578]
[1764632787433,0.67,127.22,127.18,4.23136143]
[1764632787434,8.66,127.21,127.18,4.23136143]
[1764632787836,9.33,127.21,127.18,4.23136143]
[1764632788235,9.33,127.21,127.19,27.51788662]
[1764632789344,8.66,127.21,127.19,28.17788662]
[1764632790343,8.66,127.21,127.19,31.74924805]
[1764632790844,8.66,127.21,127.2,0.66]
[1764632791159,8.66,127.21,127.19,31.74924805]
[1764632791381,8.66,127.21,127.19,28.17788662]
[1764632791937,9.31,127.21,127.19,27.51788662]
[1764632792772,12.23136143,127.21,127.19,7.86225332]
[1764632792968,0.65,127.2,127.19,7.86225332]
[1764632793268,12.88136143,127.21,127.19,7.86225332]
[1764632793441,12.88136143,127.21,127.19,27.51788662]
[1764632795655,7.93488443,127.2,127.12,3.57136143]
[1764632795842,3.57136143,127.16,127.14,19.66296863]
[1764632796041,12.23136143,127.16,127.14,19.66296863]
[1764632796351,12.88136143,127.16,127.14,19.66296863]
[1764632796738,12.23136143,127.16,127.14,28.18831391]
[1764632797040,8.66,127.16,127.15,0.66]
[1764632797837,8.66,127.16,127.14,27.52831391]
[1764632798040,0.65,127.15,127.14,27.52831391]
[1764632798260,4.22136143,127.15,127.14,7.86534528]
[1764632798879,4.22136143,127.15,127.13,7.86596397]
[1764632799037,4.22136143,127.14,127.13,7.86596397]
[1764632800264,4.363523,127.14,127.13,7.86596397]
[1764632801057,4.363523,127.14,127.12,7.86658275]
[1764632801270,4.22136143,127.13,127.12,7.86658275]
[1764632801778,4.363523,127.13,127.12,7.86658275]
[1764632804362,4.363523,127.13,127.11,0.2]
[1764632804565,13.043523,127.12,127.11,0.2]
[1764632805854,29.72005067,127.12,127.11,0.2]
[1764632810476,13.043523,127.12,127.11,0.2]
[1764632812153,12.90136143,127.12,127.11,0.2]
[1764632812353,16.308864,127.15,127.11,8.06720163]
[1764632812558,2.28609534,127.13,127.11,8.06720163]
[1764632812755,8.66,127.12,127.11,8.06720163]
[1764632813975,10.94609534,127.12,127.11,8.06720163]
[1764632815750,8.66,127.12,127.11,8.06720163]
[1764632817983,10.94609534,127.12,127.11,8.06720163]
[1764632819381,8.66,127.12,127.11,8.06720163]
[1764632820095,10.94609534,127.12,127.11,8.06720163]
[1764632820393,11.75825691,127.12,127.11,0.2]
[1764632821977,19.62483966,127.12,127.11,0.2]
[1764632822376,28.43478458,127.12,127.11,0.2]
[1764632822780,19.62483966,127.12,127.11,0.2]
[1764632825593,25.26097049,127.11,127.1,0.1]
[1764632825781,28.21706583,127.11,127.1,0.1]
[1764632825979,36.08426746,127.11,127.1,0.1]
[1764632826177,33.79817212,127.11,127.1,0.1]
[1764632826484,36.08426746,127.11,127.1,0.1]
[1764632828077,36.08426746,127.11,127.09,0.2]
[1764632828290,11.90820183,127.1,127.09,0.2]
[1764632830094,16.308864,127.07,127.06,0.1]
[1764632830296,27.27495934,127.07,127.06,0.1]
[1764632830475,27.94495934,127.07,127.06,0.1]
[1764632831381,36.89706583,127.07,127.06,0.1]
[1764632832083,44.76674396,127.07,127.06,0.1]
[1764632832395,9.62210649,127.06,127.02,7.87263562]
[1764632832590,8.68,127.05,127.01,7.97316749]
[1764632832785,2.42825691,127.04,127.01,7.97316749]
[1764632832988,8.68,127.03,127.01,27.65665697]
[1764632833697,10.96609534,127.03,127.01,27.65665697]
[1764632834082,10.96609534,127.03,127.01,19.78348948]
[1764632836904,8.68,127.03,127.01,20.46348948]
[1764632838106,10.96609534,127.03,127.01,25.18348948]
[1764632838508,8.68,127.03,127.01,33.05688527]
[1764632838682,10.96609534,127.03,127.01,33.05688527]
[1764632838999,8.68,127.03,127.01,33.05688527]
[1764632839203,10.96609534,127.03,127.01,27.65688527]
[1764632839396,2.28609534,127.02,127.01,7.97339579]
[1764632839807,8.68,127.03,127.01,7.97339579]
[1764632839987,10.96609534,127.03,127.01,7.97339579]
[1764632840607,8.68,127.03,127.01,28.33688527]
[1764632841294,8.68,127.03,127.01,27.65688527]
[1764632841904,8.68,127.03,127.01,19.78348948]
[1764632842383,8.68,127.03,127.02,0.68]
[1764632843388,8.68,127.03,127.02,8.55277594]
[1764632843600,8.82216157,127.03,127.01,24.2820022]
[1764632843802,8.82216157,127.03,126.99,19.78564876]
[1764632843803,37.36144719,127.02,126.99,0.1]
[1764632844097,2.42825691,127.0,126.91,19.27495934]
[1764632844299,2.28609534,126.95,126.93,19.69538418]
[1764632844604,8.68,126.94,126.93,19.69538418]
[1764632844802,8.68,126.94,126.93,20.37538418]
[1764632845305,8.68,126.94,126.92,8.55897888]
[1764632846396,8.68,126.94,126.92,28.25642609]
[1764632846600,2.28609534,126.96,126.93,0.68]
[1764632846802,8.68,126.95,126.93,0.68]
[1764632847600,10.96609534,126.95,126.93,0.68]
[1764632849017,8.68,126.95,126.94,7.87773751]
[1764632849589,10.96609534,126.95,126.94,7.87773751]
[1764632849789,11.77825691,126.95,126.94,5.4]
[1764632850087,11.77825691,126.95,126.93,16.308864]
[1764632850294,2.28609534,126.94,126.92,7.87893953]
[1764632850504,2.28609534,126.94,126.92,8.57893953]
[1764632850701,11.10825691,126.95,126.92,8.57893953]
[1764632851438,8.82216157,126.95,126.92,8.57893953]
[1764632851617,2.28609534,126.94,126.92,8.57893953]
[1764632852702,8.68,126.93,126.92,7.87893953]
[1764632852905,0.67,126.98,126.92,27.57638674]
[1764632853102,2.28609534,126.96,126.92,27.57638674]
[1764632853414,2.28609534,126.96,126.94,7.87773751]
[1764632854012,2.28609534,126.96,126.94,8.57773751]
[1764632854413,2.28609534,126.96,126.94,0.7]
[1764632855816,2.28609534,126.96,126.95,7.87711697]
[1764632856019,2.28609534,126.96,126.95,13.27711697]
[1764632857313,2.28609534,126.96,126.95,5.4]
[1764632858018,10.96609534,126.96,126.95,5.4]
[1764632859119,9.49216157,126.96,126.95,5.4]
[1764632859321,11.10825691,126.96,126.95,5.4]
[1764632860225,11.77825691,126.96,126.95,5.4]
[1764632861606,11.77825691,126.96,126.94,13.27767597]
[1764632861805,2.28609534,126.95,126.94,13.27767597]
[1764632862319,9.49216157,126.96,126.94,13.27767597]
[1764632862512,2.28609534,126.95,126.94,13.27767597]
[1764632862722,3.14825691,126.95,126.94,5.4]
[1764632863725,3.14825691,126.95,126.93,7.87820571]
[1764632864313,2.28609534,126.94,126.93,7.87820571]
[1764632864527,2.42825691,126.94,126.92,7.87893006]
[1764632864706,8.68,126.93,126.92,7.87893006]
[1764632865625,8.68,126.93,126.92,0.7]
[1764632865820,11.68609534,126.93,126.9,28.28059549]
[1764632866117,2.28609534,126.92,126.9,28.28059549]
[1764632866827,9.4,126.93,126.9,28.28059549]
[1764632867197,2.28609534,126.91,126.9,28.28059549]
[1764632867404,2.28609534,126.92,126.9,28.28059549]
[1764632867927,2.28609534,126.92,126.9,19.70037485]
[1764632868132,3.14825691,126.91,126.89,7.88084167]
[1764632868310,10.96609534,126.9,126.89,7.88084167]
[1764632869326,11.68609534,126.9,126.89,7.88084167]
[1764632870025,11.68609534,126.9,126.88,7.98146279]
[1764632870232,11.68609534,126.9,126.88,8.68146279]
[1764632870233,10.96609534,126.9,126.88,8.68146279]
[1764632872330,8.68,126.9,126.88,8.68146279]
[1764632872552,12.26382518,126.9,126.88,8.68146279]
[1764632872834,3.58382518,126.92,126.89,0.7]
[1764632873006,8.68,126.91,126.89,0.7]
[1764632873346,4.30382518,126.92,126.89,0.7]
[1764632873525,4.30382518,126.92,126.88,27.68511978]
[1764632873526,3.58382518,126.9,126.88,8.68141818]
[1764632873914,8.7,126.89,126.88,8.68141818]
[1764632874633,3.58382518,126.9,126.88,8.68141818]
[1764632874835,8.7,126.89,126.88,8.68141818]
[1764632875224,8.7,126.89,126.88,7.98141818]
[1764632876725,13.14598675,126.89,126.88,0.1]
[1764632877319,21.95593167,126.89,126.88,0.1]
[1764632877624,29.83677334,126.89,126.88,0.1]
[1764632879438,21.95593167,126.89,126.88,0.1]
[1764632880435,4.44598675,126.89,126.88,0.1]
[1764632880641,13.14598675,126.89,126.88,0.1]
[1764632883447,12.42598675,126.89,126.88,0.1]
[1764632884023,3.58382518,126.89,126.88,0.1]
[1764632884338,24.18800656,126.92,126.88,0.8]
[1764632884339,0.14216157,126.91,126.88,0.8]
[1764632884541,8.7,126.9,126.88,0.8]
[1764632885041,3.58382518,126.92,126.88,0.8]
[1764632885344,0.72,126.96,126.89,3.58382518]
[1764632885551,8.7,126.95,126.91,3.58382518]
[1764632885732,3.58382518,126.94,126.9,0.7]
[1764632886332,3.58382518,126.94,126.9,4.28382518]
[1764632886533,3.58382518,126.94,126.91,0.7]
[1764632887046,12.28382518,126.95,126.91,0.7]
[1764632887340,3.58382518,126.94,126.91,0.7]
[1764632887532,3.58382518,126.94,126.92,7.87897888]
[1764632888346,3.58382518,126.94,126.92,8.57897888]
[1764632888546,4.44598675,126.93,126.9,7.88022064]
[1764632888723,4.44598675,126.93,126.9,8.58022064]
[1764632888724,12.28382518,126.92,126.9,8.58022064]
[1764632889446,13.00382518,126.92,126.9,7.88022064]
[1764632889744,8.7,126.91,126.9,7.88022064]
[1764632890545,3.72598675,126.93,126.9,0.7]
[1764632890850,8.7,126.91,126.89,3.58382518]
[1764632891224,8.7,126.91,126.9,0.7]
[1764632892257,0.14216157,126.93,126.9,0.7]
[1764632892426,8.7,126.92,126.9,9.68382518]
[1764632892620,8.7,126.92,126.91,7.87959971]
[1764632892850,8.7,126.92,126.91,8.57959971]
[1764632893054,8.7,126.92,126.91,12.16342489]
[1764632893258,8.7,126.92,126.91,8.57959971]
[1764632896336,8.7,126.92,126.91,28.278599]
[1764632897220,8.7,126.92,126.91,33.678599]
[1764632898349,8.7,126.92,126.91,31.86242418]
[1764632898535,8.7,126.93,126.91,31.86242418]
[1764632898733,8.7,126.93,126.92,0.7]
[1764632898926,8.7,126.93,126.92,8.57897888]
[1764632903268,8.7,126.93,126.92,13.97897888]
[1764632904944,9.36,126.93,126.92,13.27897888]
[1764632907270,8.7,126.93,126.92,13.97897888]
[1764632908370,4.24382518,126.96,126.92,33.67642609]
[1764632908670,8.7,126.93,126.92,37.26025127]
[1764632908875,8.7,126.93,126.92,36.56025127]
[1764632909273,8.7,126.93,126.92,32.97642609]
[1764632909567,8.7,126.93,126.92,33.67642609]
[1764632914484,8.7,126.93,126.92,37.26025127]
[1764632914769,0.7,127.02,126.95,16.308864]
[1764632915066,9.4,127.01,126.98,3.58382518]
[1764632915445,9.4,127.01,126.98,4.30382518]
[1764632915868,9.4,127.01,126.99,7.87463579]
[1764632916461,0.7,127.0,126.99,7.87463579]
[1764632917051,12.98382518,127.01,126.99,7.87463579]
[1764632918064,0.7,127.0,126.98,7.87525594]
[1764632918259,4.28382518,127.0,126.98,7.87525594]
[1764632918658,0.7,126.99,126.98,7.87525594]
[1764632919256,4.28382518,126.99,126.97,7.87587619]
[1764632919448,3.58382518,126.98,126.97,7.87587619]
[1764632919653,4.28382518,126.98,126.97,7.87587619]
[1764632920961,4.28382518,126.98,126.95,32.96939482]
[1764632921157,12.98382518,126.97,126.95,32.96939482]
[1764632922277,9.4,126.97,126.95,32.96939482]
[1764632923172,0.7,126.96,126.95,32.96939482]
[1764632923376,8.7,126.97,126.95,32.96939482]
[1764632923564,0.7,126.96,126.95,13.27711697]
[1764632925081,4.28382518,126.96,126.95,13.27711697]
[1764632926078,0.7,126.96,126.95,13.27711697]
[1764632926454,0.7,126.96,126.9,21.708864]
[1764632926652,3.72598675,126.95,126.91,31.82192611]
[1764632927074,3.72598675,126.95,126.9,16.308864]
[1764632927075,3.72598675,126.93,126.9,7.88007469]
[1764632927281,8.7,126.92,126.9,8.54007469]
[1764632928290,0.14216157,126.94,126.91,0.66]
[1764632928580,8.7,126.93,126.9,31.16445148]
[1764632928763,8.7,126.93,126.9,28.2406263]
[1764632928961,0.7,126.92,126.9,27.5806263]
[1764632929475,12.28382518,126.93,126.9,28.2406263]
[1764632929782,12.98382518,126.93,126.9,28.2406263]
[1764632930372,0.14216157,126.9,126.88,0.1]
[1764632930576,12.42598675,126.89,126.88,0.1]
[1764632930765,13.12598675,126.89,126.88,0.1]
[1764632932382,11.83606082,126.89,126.88,0.1]
[1764632934266,19.71690249,126.89,126.88,0.1]
[1764632935492,28.52684741,126.89,126.88,0.1]
[1764632939471,0.14216157,126.88,126.82,0.1]
[1764632939683,2.29389925,126.84,126.82,7.98508274]
[1764632939991,8.72,126.83,126.82,7.98508274]
[1764632940471,11.85606082,126.83,126.82,0.1]
[1764632940665,8.72,126.83,126.82,8.64515432]
[1764632940872,11.85606082,126.83,126.82,0.1]
[1764632941294,9.56216157,126.83,126.82,0.1]
[1764632941548,8.86216157,126.83,126.82,0.1]
[1764632942169,8.72,126.83,126.82,0.1]
[1764632943070,8.72,126.83,126.82,3.05389925]
[1764632943666,8.72,126.83,126.82,10.93909086]
[1764632944178,8.72,126.83,126.82,16.33909086]
[1764632944369,8.72,126.83,126.82,14.04519161]
[1764632944570,8.72,126.83,126.82,16.33909086]
[1764632946672,8.72,126.88,126.85,2.29389925]
[1764632947199,8.72,126.88,126.85,2.95389925]
[1764632947891,11.71389925,126.88,126.86,7.88270534]
[1764632948871,11.71389925,126.88,126.85,7.88332676]
[1764632949101,11.71389925,126.88,126.85,13.94332676]
[1764632949976,11.71389925,126.88,126.85,8.54332676]
[1764632950697,11.71389925,126.88,126.85,7.88332676]
[1764632950893,11.71389925,126.88,126.85,8.54332676]
[1764632951274,11.01389925,126.88,126.85,7.88332676]
[1764632951476,0.72,126.87,126.85,7.88332676]
[1764632953083,11.73389925,126.88,126.85,8.56332676]
[1764632953402,9.44,126.88,126.85,8.56332676]
[1764632956299,0.72,126.88,126.85,8.56332676]
[1764632956528,8.72,126.87,126.85,8.56332676]
[1764632959608,0.72,126.86,126.85,5.4]
[1764632959782,11.01389925,126.87,126.85,5.4]
[1764632959986,11.73389925,126.87,126.85,5.4]
[1764632960186,9.44,126.87,126.85,5.4]
[1764632960988,9.44,126.87,126.85,13.96323038]
[1764632961487,9.44,126.87,126.85,13.28323038]
[1764632962201,9.44,126.87,126.85,13.96323038]
[1764632963510,8.02249559,126.9,126.85,13.28323038]
[1764632963716,36.00508511,126.93,126.88,2.29389925]
[1764632963891,9.44,126.92,126.88,2.97389925]
[1764632964083,0.14216157,126.91,126.88,2.97389925]
[1764632964394,0.14216157,126.91,126.86,5.4]
[1764632964395,0.72,126.93,126.89,2.97389925]
[1764632964701,8.72,126.92,126.9,2.97389925]
[1764632965702,8.72,126.92,126.91,7.87959971]
[1764632966003,0.72,126.94,126.91,8.55959971]
[1764632966310,8.72,126.93,126.91,10.85349896]
[1764632966884,8.72,126.93,126.91,8.55959971]
[1764632970492,3.12606082,126.92,126.85,0.65]
[1764632970723,0.83216157,126.92,126.86,22.6497252]
[1764632970893,0.14216157,126.9,126.87,2.29389925]
[1764632971101,8.72,126.89,126.86,38.9585892]
[1764632971403,8.72,126.89,126.87,0.65]
[1764632971799,8.72,126.89,126.87,2.94389925]
[1764632971999,8.72,126.89,126.87,0.65]
[1764632972199,2.98389925,126.91,126.88,0.65]
[1764632972399,8.72,126.9,126.88,8.53092315]
[1764632972700,11.01389925,126.9,126.88,8.53092315]
[1764632973327,11.01389925,126.9,126.88,7.88092315]
[1764632973695,0.69,126.91,126.88,7.88092315]
[1764632973900,8.72,126.9,126.88,8.53092315]
[1764632975726,11.01389925,126.9,126.86,7.88208934]
[1764632975925,11.01389925,126.9,126.88,8.53129375]
[1764632977330,8.72,126.9,126.88,8.53129375]
[1764632978622,0.69,126.91,126.88,8.53129375]
[1764632978825,11.01389925,126.9,126.88,8.53129375]
[1764632979528,0.83216157,126.89,126.87,13.28181403]
[1764632980131,8.72,126.9,126.87,13.28181403]
[1764632980331,8.72,126.9,126.88,0.65]
[1764632980509,8.72,126.9,126.89,7.88084167]
[1764632980837,9.41,126.9,126.89,13.28084167]
[1764632982933,8.72,126.9,126.89,13.28084167]
[1764632983325,2.29389925,126.92,126.89,13.28084167]
[1764632983528,7.8768059,126.96,126.9,2.96389925]
[1764632983836,2.29389925,126.94,126.9,8.36389925]
[1764632984034,2.29389925,126.94,126.91,0.67]
[1764632984228,2.99389925,126.94,126.91,0.67]
[1764632984741,0.7,126.96,126.92,10.17287813]
[1764632985061,8.72,126.95,126.93,0.67]
[1764632986031,8.72,126.95,126.94,7.87773751]
[1764632991942,8.72,126.95,126.93,8.54835815]
[1764632995351,8.72,126.95,126.93,13.94835815]
[1764632995749,0.14216157,126.98,126.94,4.25047455]
[1764632996052,9.4,126.97,126.94,5.4]
[1764632996227,8.7,126.97,126.94,6.07]
[1764632996432,9.4,126.97,126.94,6.07]
[1764632996852,8.7,126.97,126.95,0.67]
[1764632997051,9.4,126.97,126.94,9.65047455]
[1764632997356,8.7,126.97,126.95,8.54692963]
[1764632998053,8.7,126.97,126.95,8.54696661]
[1764632998642,9.4,126.97,126.95,7.87696661]
[1764632998841,4.28047455,126.96,126.93,5.4]
[1764632999045,4.28047455,126.96,126.93,13.948343]
[1764633000060,4.28047455,126.95,126.92,7.87869597]
[1764633000251,3.58047455,126.94,126.92,7.87869597]
[1764633000552,8.7,126.93,126.92,7.87869597]
[1764633001252,9.4,126.93,126.91,27.5780636]
[1764633001454,4.28047455,126.92,126.91,7.87959971]
[1764633001642,8.7,126.93,126.91,8.54959971]
[1764633003639,0.7,126.95,126.92,0.67]
[1764633003939,9.42,126.94,126.91,12.13007426]
[1764633004153,9.42,126.94,126.91,8.54959971]
[1764633004957,13.00047455,126.94,126.91,8.54959971]
[1764633005539,9.42,126.94,126.91,8.54959971]
[1764633007169,9.42,126.94,126.91,13.94959971]
[1764633009052,8.72,126.94,126.91,13.27959971]
[1764633009248,8.72,126.94,126.92,8.54861929]
[1764633015567,9.44,126.94,126.91,28.25755754]
[1764633015893,13.02047455,126.94,126.91,28.25755754]
[1764633016094,0.72,126.93,126.9,7.88005849]
[1764633016380,4.30047455,126.93,126.9,0.68]
[1764633017557,4.30047455,126.93,126.91,7.87959971]
[1764633018985,4.30047455,126.93,126.91,13.27959971]
[1764633019175,4.30047455,126.93,126.91,5.4]
[1764633019567,0.72,126.93,126.91,13.27915971]
[1764633020082,9.44,126.94,126.91,13.95915971]
[1764633021265,12.30047455,126.94,126.91,13.95915971]
[1764633021588,13.02047455,126.94,126.91,13.95915971]
[1764633022086,12.30047455,126.94,126.91,13.95915971]
[1764633022288,0.72,126.93,126.91,13.95915971]
[1764633022686,12.30047455,126.94,126.91,13.95915971]
[1764633022889,13.02047455,126.94,126.91,13.95915971]
[1764633023078,0.72,126.93,126.91,13.95915971]
[1764633023274,13.02047455,126.94,126.91,13.95915971]
[1764633023478,8.7,126.93,126.92,0.68]
[1764633023662,8.7,126.93,126.91,37.23863355]
[1764633023865,8.7,126.93,126.91,33.658159]
[1764633027769,8.7,126.93,126.92,0.68]
[1764633028070,8.7,126.93,126.91,33.658159]
[1764633029193,8.7,126.93,126.91,32.978159]
[1764633029398,8.7,126.93,126.92,0.68]
[1764633029576,8.7,126.93,126.91,32.978159]
[1764633029781,8.7,126.93,126.91,33.698159]
[1764633029976,8.7,126.93,126.92,0.72]
[1764633030685,8.7,126.93,126.91,13.27915971]
[1764633030686,9.36,126.93,126.91,13.27915971]
[1764633030895,0.66,126.92,126.91,5.4]
[1764633031508,0.66,126.92,126.91,13.27959971]
[1764633032494,12.28047455,126.93,126.91,13.27959971]
[1764633032695,8.7,126.93,126.91,13.99959971]
[1764633033689,9.36,126.93,126.91,13.27959971]
[1764633034699,8.7,126.93,126.91,13.99959971]
[1764633034998,9.36,126.93,126.91,13.99959971]
[1764633035996,8.7,126.93,126.91,13.99959971]
[1764633036201,8.7,126.93,126.92,0.72]
[1764633036699,8.7,126.93,126.92,8.59897888]
[1764633036872,8.7,126.96,126.92,37.27690064]
[1764633037077,8.7,126.96,126.93,4.30047455]
[1764633037278,9.36,126.96,126.93,0.72]
[1764633037897,9.36,126.96,126.93,4.30047455]
[1764633038288,9.36,126.96,126.94,7.87773751]
[1764633039204,0.66,126.98,126.94,13.99773751]
[1764633039390,0.66,126.96,126.94,13.27773751]
[1764633039586,4.24047455,126.96,126.94,13.27773751]
[1764633040792,0.66,126.96,126.94,13.27773751]
[1764633042904,0.66,126.96,126.94,7.87773751]
[1764633046912,8.7,126.97,126.94,28.25208129]
[1764633047207,12.97047455,126.97,126.94,28.25208129]
[1764633047411,0.69,126.96,126.94,27.57208129]
[1764633048389,3.58047455,126.95,126.94,7.87773751]
[1764633048588,3.58047455,126.95,126.93,5.4]
[1764633048794,4.27047455,126.94,126.92,7.8784026]
[1764633049010,12.28047455,126.93,126.92,7.8784026]
[1764633049308,12.97047455,126.93,126.91,7.87959971]
[1764633049511,9.39,126.93,126.91,7.87959971]
[1764633050615,8.7,126.93,126.91,8.55959971]
[1764633050802,9.39,126.93,126.91,7.87959971]
[1764633052797,9.39,126.93,126.91,8.55959971]
[1764633052985,9.39,126.93,126.91,7.87959971]
[1764633054703,9.39,126.93,126.91,13.27959971]
[1764633055808,8.7,126.93,126.91,13.95959971]
[1764633056414,9.39,126.93,126.91,13.95959971]
[1764633056927,8.7,126.93,126.91,13.27959971]
[1764633057097,8.7,126.93,126.92,2.97222011]
[1764633057608,8.7,126.93,126.92,0.68]
[1764633058916,8.7,126.93,126.92,8.55897888]
[1764633060589,8.7,126.93,126.92,13.95897888]
[1764633066633,9.39,126.93,126.92,13.27897888]
[1764633067007,9.39,126.93,126.92,5.4]
[1764633067926,11.68222011,126.93,126.92,5.4]
[1764633068527,8.02146939,126.92,126.87,0.68]
[1764633068727,2.29222011,126.88,126.85,0.68]
[1764633068931,8.7,126.87,126.85,0.68]
[1764633069225,8.7,126.86,126.85,0.68]
[1764633069628,9.39,126.86,126.82,22.78398069]
[1764633069832,9.39,126.86,126.82,20.49176058]
[1764633069833,0.69,126.85,126.82,20.49176058]
[1764633070203,0.69,126.85,126.82,0.78]
[1764633070409,0.69,126.85,126.82,0.1]
[1764633070619,0.69,126.85,126.82,0.78]
[1764633071229,0.69,126.85,126.82,17.088864]
[1764633071838,0.69,126.85,126.82,16.408864]
[1764633072021,0.69,126.85,126.82,0.1]
[1764633072432,8.7,126.86,126.82,3.10222011]
[1764633072747,9.38,126.86,126.83,10.17624837]
[1764633072914,9.38,126.86,126.83,10.88624837]
[1764633073117,8.7,126.86,126.83,7.88402826]
[1764633073318,0.68,126.85,126.83,7.88402826]
[1764633073726,9.38,126.86,126.83,8.59402826]
[1764633074130,9.38,126.86,126.83,0.71]
[1764633074322,9.38,126.86,126.83,8.59447326]
[1764633076242,8.7,126.86,126.82,8.69504536]
[1764633076447,0.68,126.85,126.82,8.69504536]
[1764633076675,9.38,126.86,126.83,0.71]
[1764633077829,9.38,126.86,126.84,7.88394828]
[1764633078027,0.68,126.88,126.84,10.17616839]
[1764633078229,8.7,126.87,126.85,0.71]
[1764633078445,8.7,126.87,126.85,6.11]
[1764633079347,8.7,126.87,126.85,5.4]
[1764633079544,8.7,126.87,126.85,6.11]
[1764633080857,8.7,126.87,126.85,13.99286704]
[1764633084181,9.38,126.87,126.85,13.28286704]
[1764633084465,8.7,126.87,126.85,16.28508715]
[1764633087748,8.7,126.87,126.85,13.99286704]
[1764633090471,3.11438168,126.91,126.86,3.00222011]
[1764633090668,8.7,126.9,126.86,8.40222011]
[1764633090882,9.38,126.9,126.87,0.71]
[1764633091066,8.7,126.9,126.87,0.71]
[1764633091370,0.68,126.89,126.86,8.40222011]
[1764633091874,0.68,126.89,126.87,0.71]
[1764633092373,0.68,126.89,126.87,8.59173016]
[1764633093365,0.68,126.89,126.87,7.88173016]
[1764633093875,0.68,126.89,126.87,8.59173016]
[1764633094266,9.38,126.9,126.87,8.59173016]
[1764633096250,9.38,126.9,126.87,13.99173016]
[1764633097973,8.7,126.9,126.87,13.28173016]
[1764633098178,0.71,126.89,126.87,14.00173016]
[1764633100062,0.71,126.89,126.87,13.28173016]